bitfinex/quotes_BTCUSD_20250530
["timestamp","ask_amount","ask_price","bid_price","bid_amount"]
[1748569207753,0.23375223,105770.0,105760.0,0.75521379]
[1748569207977,0.23375223,105770.0,105760.0,0.73121784]
[1748569208201,0.22429829,105770.0,105760.0,0.73121784]
[1748569208424,0.22429829,105770.0,105760.0,0.75521379]
[1748569208643,0.23375249,105770.0,105760.0,0.76433848]
[1748569209061,0.23375249,105770.0,105760.0,0.75488347]
[1748569209276,0.23375249,105770.0,105760.0,0.73597318]
[1748569209523,0.22429829,105770.0,105760.0,0.75788347]
[1748569209724,0.22429829,105770.0,105760.0,0.76433848]
[1748569209938,0.22429829,105770.0,105760.0,0.75188347]
[1748569210163,0.22429829,105770.0,105760.0,0.76433848]
[1748569210388,0.22429829,105770.0,105760.0,0.75788347]
[1748569210625,0.22429829,105770.0,105760.0,0.36733848]
[1748569210855,0.22429829,105770.0,105760.0,0.35788347]
[1748569211166,0.22429829,105770.0,105760.0,0.75788347]
[1748569211593,0.22429829,105770.0,105760.0,0.74842837]
[1748569211822,0.22429829,105770.0,105760.0,0.75788347]
[1748569212269,0.22429829,105770.0,105760.0,0.73897318]
[1748569212476,0.22429829,105770.0,105760.0,0.74842819]
[1748569212689,0.19729829,105770.0,105760.0,0.74842837]
[1748569212878,0.21620705,105770.0,105760.0,0.74842837]
[1748569213087,0.21620705,105770.0,105760.0,0.73897318]
[1748569213314,0.21620705,105770.0,105760.0,0.74842837]
[1748569213511,0.21620705,105770.0,105760.0,0.75788347]
[1748569213696,0.21620705,105770.0,105760.0,0.74842837]
[1748569214173,0.21620705,105770.0,105760.0,0.35788347]
[1748569214458,0.22195276,105770.0,105760.0,0.00614681]
[1748569214717,0.86867276,105770.0,105760.0,0.00614681]
[1748569215765,0.86867276,105770.0,105760.0,0.00314681]
[1748569215978,0.86867276,105770.0,105760.0,0.00014681]
[1748569216197,0.86967276,105770.0,105760.0,0.00214681]
[1748569216417,0.86867276,105770.0,105760.0,0.00214681]
[1748569216637,0.86867276,105770.0,105760.0,0.00014681]
[1748569216857,0.86967276,105770.0,105760.0,0.00014681]
[1748569217325,0.96272671,105770.0,105760.0,0.00014681]
[1748569221883,0.53259276,105770.0,105760.0,0.00014681]
[1748569223638,0.51635276,105770.0,105760.0,0.00014681]
[1748569224100,0.53145276,105770.0,105760.0,0.00014681]
[1748569224538,0.53130366,105770.0,105760.0,0.00014681]
[1748569224751,0.22470366,105770.0,105760.0,0.00014681]
[1748569224972,0.53130366,105770.0,105760.0,0.00014681]
[1748569225859,0.20960366,105770.0,105760.0,0.00014681]
[1748569226091,0.53236366,105770.0,105760.0,0.00014681]
[1748569229062,0.53232366,105770.0,105760.0,0.00014681]
[1748569229761,0.49982366,105770.0,105760.0,0.01664681]
[1748569229979,0.49982366,105770.0,105760.0,0.00014681]
[1748569237955,0.49982366,105770.0,105760.0,0.01564681]
[1748569237956,0.19330366,105770.0,105760.0,0.01564681]
[1748569238177,0.19330366,105770.0,105760.0,0.03134681]
[1748569239717,0.19330366,105770.0,105760.0,0.01564681]
[1748569240180,0.19330366,105770.0,105760.0,0.03064681]
[1748569240403,0.49958366,105770.0,105760.0,0.03064681]
[1748569241342,0.19330366,105770.0,105760.0,0.03064681]
[1748569241552,0.21099758,105770.0,105760.0,0.33480439]
[1748569241811,0.20154391,105770.0,105760.0,0.34425967]
[1748569242026,0.20154391,105770.0,105760.0,0.35371477]
[1748569242246,0.20154391,105770.0,105760.0,0.34425967]
[1748569242745,0.20154391,105770.0,105760.0,0.35371486]
[1748569242962,0.20154391,105770.0,105760.0,0.37262497]
[1748569243411,0.02190858,105770.0,105760.0,0.37262497]
[1748569243628,0.03136252,105770.0,105760.0,0.3631696]
[1748569243853,0.03136252,105770.0,105760.0,0.37262452]
[1748569244078,0.03136252,105770.0,105760.0,0.77262452]
[1748569244290,0.03036252,105770.0,105760.0,0.77262407]
[1748569244500,0.02836252,105770.0,105760.0,0.76316924]
[1748569244727,0.02936252,105770.0,105760.0,0.76316924]
[1748569244946,0.219386,105770.0,105760.0,0.76316924]
[1748569245183,0.03975094,105770.0,105760.0,0.76316924]
[1748569245399,0.21938653,105770.0,105760.0,0.75371432]
[1748569245861,0.21838653,105770.0,105760.0,0.77211669]
[1748569246088,0.029297,105770.0,105760.0,0.78157152]
[1748569246768,0.01984253,105770.0,105760.0,0.78157152]
[1748569246985,0.01890761,105770.0,105760.0,0.38157107]
[1748569247204,0.02836181,105770.0,105760.0,0.38157107]
[1748569247635,0.0378161,105770.0,105760.0,0.78157107]
[1748569247872,0.2363601,105770.0,105760.0,0.7626615]
[1748569248089,0.22690643,105770.0,105760.0,0.7626615]
[1748569248308,0.22690643,105770.0,105760.0,0.75371405]
[1748569248928,0.03761376,105770.0,105760.0,0.75371405]
[1748569249795,0.03761376,105770.0,105760.0,0.76316888]
[1748569250227,0.03761376,105770.0,105760.0,0.75371405]
[1748569250492,0.02815929,105770.0,105760.0,0.36316879]
[1748569250711,0.03761367,105770.0,105760.0,0.36316879]
[1748569250915,0.04706814,105770.0,105760.0,0.35371405]
[1748569251125,0.04706814,105770.0,105760.0,0.75371405]
[1748569253146,0.01890689,105780.0,105770.0,0.21308467]
[1748569253370,0.0378136,105780.0,105770.0,0.34419264]
[1748569253586,0.21743212,105780.0,105770.0,0.33473862]
[1748569253795,0.20797872,105780.0,105770.0,0.34419282]
[1748569253995,0.20797872,105780.0,105770.0,0.33473862]
[1748569254435,0.20052523,105780.0,105770.0,0.14564927]
[1748569254653,0.20052523,105780.0,105770.0,0.15510365]
[1748569254804,0.20052523,105780.0,105770.0,0.35364747]
[1748569255551,0.20052523,105780.0,105770.0,0.34419318]
[1748569255759,0.20052523,105780.0,105770.0,0.35364747]
[1748569256216,0.20052523,105780.0,105770.0,0.34419318]
[1748569256390,0.20052523,105780.0,105770.0,0.32824965]
[1748569256612,0.20052523,105780.0,105770.0,0.13916012]
[1748569257214,0.20052523,105780.0,105770.0,0.53916012]
[1748569257616,0.20052523,105780.0,105770.0,0.72824965]
[1748569257793,0.20052523,105780.0,105770.0,0.74715805]
[1748569258203,0.20997854,105780.0,105770.0,0.76169899]
[1748569258617,0.20997854,105780.0,105770.0,0.75224479]
[1748569258811,0.20052523,105780.0,105770.0,0.53479212]
[1748569258992,0.20052523,105780.0,105770.0,0.51979212]
[1748569259195,0.20052523,105780.0,105770.0,0.52924659]
[1748569259839,0.20052523,105780.0,105770.0,0.71833594]
[1748569260287,0.20052523,105780.0,105770.0,0.31833594]
[1748569260479,0.20052523,105780.0,105770.0,0.11979212]
[1748569260682,0.20052523,105780.0,105770.0,0.52924659]
[1748569260893,0.20052523,105780.0,105770.0,0.53870097]
[1748569261089,0.20052523,105780.0,105770.0,0.70888165]
[1748569261290,0.20052523,105780.0,105770.0,0.71833603]
[1748569261701,0.20052523,105780.0,105770.0,0.72779032]
[1748569262070,0.20052523,105780.0,105770.0,0.09105395]
[1748569262342,0.20799802,105770.0,105760.0,0.22965044]
[1748569262548,0.20799802,105770.0,105760.0,0.33015958]
[1748569262756,0.20799802,105770.0,105760.0,0.74535958]
[1748569263589,0.20799802,105770.0,105760.0,0.75481468]
[1748569264525,0.02836287,105770.0,105760.0,0.77372452]
[1748569264737,0.01890778,105770.0,105760.0,0.76756922]
[1748569264939,0.02836207,105770.0,105760.0,0.76756922]
[1748569265160,0.01890778,105770.0,105760.0,0.76756922]
[1748569265388,0.02836198,105770.0,105760.0,0.76756922]
[1748569265662,0.03781627,105770.0,105760.0,0.76756922]
[1748569265862,0.03781627,105770.0,105760.0,0.36756922]
[1748569266066,0.02836198,105770.0,105760.0,0.36756922]
[1748569266277,0.01890778,105770.0,105760.0,0.76756922]
[1748569266918,0.01890778,105770.0,105760.0,0.76756798]
[1748569270346,0.00945376,105770.0,105760.0,0.76756798]
[1748569270552,0.0189077,105770.0,105760.0,0.76756798]
[1748569271039,0.02836172,105770.0,105760.0,0.8626687]
[1748569271258,0.02836172,105770.0,105760.0,0.865967]
[1748569274192,0.03781592,105770.0,105760.0,0.85651226]
[1748569274409,0.04727021,105770.0,105760.0,0.865967]
[1748569275437,0.03781645,105770.0,105760.0,0.86596578]
[1748569275693,0.04727083,105770.0,105760.0,0.86596578]
[1748569277234,0.04727083,105770.0,105760.0,0.85651104]
[1748569278105,0.04727083,105770.0,105760.0,0.85651102]
[1748569278333,0.03781645,105770.0,105760.0,0.86596576]
[1748569278800,0.02836216,105770.0,105760.0,0.86596576]
[1748569279023,0.01890796,105770.0,105760.0,1.20596576]
[1748569279278,0.02836216,105770.0,105760.0,1.20596576]
[1748569279506,0.02836216,105770.0,105760.0,1.2026687]
[1748569279720,0.02836216,105770.0,105760.0,1.20596561]
[1748569280165,0.01890796,105770.0,105760.0,1.20596561]
[1748569280398,0.02836172,105770.0,105760.0,1.20596561]
[1748569282056,0.03781601,105770.0,105760.0,1.20596561]
[1748569282295,0.04727039,105770.0,105760.0,1.51132561]
[1748569283652,0.03781601,105770.0,105760.0,1.5080287]
[1748569283866,0.03781601,105770.0,105760.0,1.5113255]
[1748569284315,0.03781601,105770.0,105760.0,1.2059655]
[1748569284542,0.02836172,105770.0,105760.0,1.2059655]
[1748569284763,0.03781601,105770.0,105760.0,1.2059655]
[1748569285463,0.03781601,105770.0,105760.0,1.1075655]
[1748569285679,0.20799793,105770.0,105760.0,0.86543841]
[1748569285906,0.20799793,105770.0,105760.0,0.87489378]
[1748569286130,0.20799793,105770.0,105760.0,1.08291157]
[1748569286347,0.20799793,105770.0,105760.0,1.09236658]
[1748569286590,0.02836287,105770.0,105760.0,1.12252207]
[1748569287089,0.02836287,105770.0,105760.0,1.12252153]
[1748569287773,0.02836287,105770.0,105760.0,1.0967667]
[1748569288001,0.02836287,105770.0,105760.0,1.08731178]
[1748569288257,0.02836287,105770.0,105760.0,1.0967667]
[1748569289203,0.02836287,105770.0,105760.0,1.10622153]
[1748569289626,0.0189084,105770.0,105760.0,1.10622099]
[1748569289847,0.02836278,105770.0,105760.0,1.12142099]
[1748569290065,0.02836278,105770.0,105760.0,1.21942099]
[1748569291847,0.02836278,105770.0,105760.0,1.4962165]
[1748569292076,0.02836278,105770.0,105760.0,1.48607076]
[1748569292304,0.03781725,105770.0,105760.0,1.49047142]
[1748569292548,0.03781725,105770.0,105760.0,1.47407142]
[1748569292771,0.03781725,105770.0,105760.0,1.46967085]
[1748569292993,0.03781725,105770.0,105760.0,1.47407142]
[1748569293214,0.22690678,105770.0,105760.0,1.46461686]
[1748569293440,0.22690678,105770.0,105760.0,1.47407187]
[1748569293931,0.03781725,105770.0,105760.0,1.48352679]
[1748569294170,0.03781725,105770.0,105760.0,1.50938162]
[1748569294875,0.02836278,105770.0,105760.0,1.50938099]
[1748569295096,0.02836225,105770.0,105760.0,1.50938099]
[1748569295762,0.03781663,105770.0,105760.0,1.50938099]
[1748569296218,0.03781663,105770.0,105760.0,1.50608419]
[1748569296486,0.03781663,105770.0,105760.0,1.49992302]
[1748569296702,0.0472711,105770.0,105760.0,1.49046819]
[1748569297146,0.0472711,105770.0,105760.0,1.49992302]
[1748569297359,0.01890796,105770.0,105760.0,1.49992302]
[1748569297584,0.03781663,105770.0,105760.0,1.50937776]
[1748569298043,0.03781663,105770.0,105760.0,1.49992302]
[1748569298757,0.02836225,105770.0,105760.0,1.50937776]
[1748569299252,0.02836225,105770.0,105760.0,1.52457776]
[1748569299465,0.01890787,105770.0,105760.0,2.79532676]
[1748569299686,0.20797854,105780.0,105770.0,0.22808485]
[1748569299915,0.20797854,105780.0,105770.0,0.32243238]
[1748569300410,0.20797854,105780.0,105770.0,0.53334285]
[1748569300657,0.19852523,105780.0,105770.0,0.53334285]
[1748569300878,0.19852523,105780.0,105770.0,0.54279723]
[1748569301106,0.19952523,105780.0,105770.0,0.54279723]
[1748569301329,0.20052523,105780.0,105770.0,0.54279723]
[1748569301800,0.20052523,105780.0,105770.0,0.74134105]
[1748569302296,0.20052523,105780.0,105770.0,0.73188676]
[1748569303427,0.20052523,105780.0,105770.0,0.33188676]
[1748569303677,0.23202523,105780.0,105770.0,0.10888838]
[1748569303906,0.23202523,105780.0,105770.0,0.1055948]
[1748569304110,0.22257165,105780.0,105770.0,0.1055948]
[1748569304765,0.22257165,105780.0,105770.0,0.11834285]
[1748569304983,0.22257165,105780.0,105770.0,0.30743238]
[1748569305201,0.22257165,105780.0,105770.0,0.31688676]
[1748569305420,0.20737165,105780.0,105770.0,0.32634105]
[1748569305634,0.19107165,105780.0,105770.0,0.33579525]
[1748569305851,0.19107165,105780.0,105770.0,0.32634105]
[1748569306556,0.19107165,105780.0,105770.0,0.31688676]
[1748569306984,0.19107165,105780.0,105770.0,0.32634105]
[1748569307213,0.20687165,105780.0,105770.0,0.00329358]
[1748569307429,0.0094542,105770.0,105760.0,1.00401595]
[1748569307646,0.00945402,105770.0,105760.0,1.65837674]
[1748569307869,0.00945402,105770.0,105760.0,1.67407674]
[1748569308091,0.01890831,105770.0,105760.0,1.67407674]
[1748569308312,0.02836181,105770.0,105760.0,1.66462218]
[1748569308529,0.03781601,105770.0,105760.0,1.66462218]
[1748569309399,0.04726968,105770.0,105760.0,1.66462218]
[1748569310359,0.03781548,105770.0,105760.0,1.66462218]
[1748569310579,0.04726959,105770.0,105760.0,1.66462218]
[1748569310796,0.03781548,105770.0,105760.0,1.66462218]
[1748569311008,0.04726968,105770.0,105760.0,1.66462218]
[1748569311224,0.03781548,105770.0,105760.0,1.66462218]
[1748569311445,0.04726968,105770.0,105760.0,1.66462218]
[1748569311693,0.04726959,105770.0,105760.0,1.66462218]
[1748569311907,0.04727021,105770.0,105760.0,1.66462218]
[1748569312331,0.03781592,105770.0,105760.0,1.35970218]
[1748569312553,0.04727021,105770.0,105760.0,1.64880218]
[1748569312778,0.04727021,105770.0,105760.0,1.65209353]
[1748569312998,0.03781592,105770.0,105760.0,1.65209353]
[1748569313226,0.03781592,105770.0,105760.0,1.64880218]
[1748569314145,0.04727012,105770.0,105760.0,1.64880218]
[1748569314568,0.03781592,105770.0,105760.0,1.64880218]
[1748569315445,0.01890779,105770.0,105760.0,1.66440218]
[1748569316112,0.0283619,105770.0,105760.0,1.66440218]
[1748569316330,0.0283619,105770.0,105760.0,1.64880218]
[1748569317269,0.01890779,105770.0,105760.0,1.64880218]
[1748569317511,0.0283619,105770.0,105760.0,1.64880218]
[1748569317740,0.0283619,105770.0,105760.0,1.64872218]
[1748569320302,0.21432469,105780.0,105770.0,0.18908953]
[1748569320542,0.21432469,105780.0,105770.0,0.20183423]
[1748569320769,0.21432469,105780.0,105770.0,0.20183441]
[1748569321003,0.21432469,105780.0,105770.0,0.60183459]
[1748569321236,0.01890581,105780.0,105770.0,0.72272939]
[1748569321495,0.0378127,105780.0,105770.0,0.7416377]
[1748569321746,0.0388127,105780.0,105770.0,0.75109164]
[1748569321964,0.0398127,105780.0,105770.0,0.75109164]
[1748569322183,0.03981261,105780.0,105770.0,0.75109164]
[1748569322410,0.22888426,105780.0,105770.0,0.73579199]
[1748569322851,0.03981261,105780.0,105770.0,0.74524548]
[1748569323098,0.04926619,105780.0,105770.0,0.74524548]
[1748569323753,0.04926619,105780.0,105770.0,0.73579154]
[1748569323974,0.04926619,105780.0,105770.0,0.34524548]
[1748569324424,0.04926619,105780.0,105770.0,0.74524548]
[1748569325096,0.03981243,105780.0,105770.0,0.74524504]
[1748569325340,0.04926592,105780.0,105770.0,0.76144504]
[1748569325560,0.03981243,105780.0,105770.0,0.76144504]
[1748569326239,0.03035903,105780.0,105770.0,0.76144504]
[1748569326466,0.03981234,105780.0,105770.0,0.76144504]
[1748569326910,0.02090572,105780.0,105770.0,0.76144504]
[1748569327159,0.002,105780.0,105770.0,4.98327302]
[1748569327385,0.002,105780.0,105770.0,4.75742202]
[1748569327605,0.002,105780.0,105770.0,4.50375702]
[1748569327820,0.001,105780.0,105770.0,4.50375702]
[1748569328032,0.03780887,105790.0,105780.0,0.23197216]
[1748569328252,0.03780887,105790.0,105780.0,1.14707332]
[1748569328492,0.04726146,105790.0,105780.0,1.12717132]
[1748569328728,0.04726146,105790.0,105780.0,1.5271712]
[1748569328960,0.04726146,105790.0,105780.0,1.5100752]
[1748569329187,0.04726146,105790.0,105780.0,1.51952815]
[1748569329611,0.04826146,105790.0,105780.0,1.51624415]
[1748569330290,0.03880887,105790.0,105780.0,1.51624415]
[1748569330514,0.03980887,105790.0,105780.0,1.31480015]
[1748569330741,0.03980887,105790.0,105780.0,1.33110015]
[1748569330964,0.03980887,105790.0,105780.0,1.73318015]
[1748569331197,0.03980878,105790.0,105780.0,1.73646415]
[1748569331412,0.002,105790.0,105780.0,2.07646415]
[1748569331850,0.001,105790.0,105780.0,2.08086472]
[1748569332272,0.01890207,105800.0,105790.0,0.60385161]
[1748569332560,0.01890207,105800.0,105790.0,0.69490556]
[1748569332788,0.02835324,105800.0,105790.0,0.69490556]
[1748569333003,0.01890207,105800.0,105790.0,1.09490556]
[1748569333473,0.01890207,105800.0,105790.0,1.11605879]
[1748569333694,0.01890207,105800.0,105790.0,1.63823879]
[1748569333908,0.02835332,105800.0,105790.0,1.63823879]
[1748569335021,0.03780475,105800.0,105790.0,1.63823879]
[1748569335223,0.03780475,105800.0,105790.0,1.48833179]
[1748569335440,0.03780475,105800.0,105790.0,1.45181879]
[1748569335441,0.03780484,105800.0,105790.0,1.45181879]
[1748569335682,0.03780475,105800.0,105790.0,1.45181879]
[1748569336568,0.02835332,105800.0,105790.0,1.45181879]
[1748569336785,0.03780475,105800.0,105790.0,1.45181879]
[1748569337020,0.03780475,105800.0,105790.0,1.46112764]
[1748569338265,0.03780475,105800.0,105790.0,1.45181879]
[1748569339678,0.04725627,105800.0,105790.0,1.45181879]
[1748569339895,0.0472568,105800.0,105790.0,1.45181879]
[1748569340112,0.02835367,105800.0,105790.0,1.45181879]
[1748569340335,0.01890233,105800.0,105790.0,1.45181879]
[1748569340580,0.02835385,105800.0,105790.0,1.45181879]
[1748569340795,0.02835376,105800.0,105790.0,1.45181879]
[1748569341018,0.01890233,105800.0,105790.0,1.45181879]
[1748569341478,0.19846832,105810.0,105800.0,0.22952846]
[1748569341700,0.03780216,105810.0,105800.0,0.33948545]
[1748569341912,0.03780216,105810.0,105800.0,0.34893679]
[1748569342120,0.03780216,105810.0,105800.0,0.74893679]
[1748569342379,0.53564704,105820.0,105810.0,0.24841052]
[1748569342380,0.01051319,105820.0,105810.0,0.24841052]
[1748569342610,0.01996239,105820.0,105810.0,0.33946447]
[1748569342820,0.01996239,105820.0,105810.0,0.35506447]
[1748569342821,0.03935041,105820.0,105810.0,0.35506447]
[1748569343043,0.03935032,105820.0,105810.0,0.35506447]
[1748569343731,0.04035032,105820.0,105810.0,0.35506447]
[1748569344381,0.04135032,105820.0,105810.0,0.35506447]
[1748569344595,0.05079988,105820.0,105810.0,0.3456142]
[1748569344808,0.05925025,105820.0,105810.0,0.35506456]
[1748569345026,0.04880096,105820.0,105810.0,0.34046465]
[1748569345285,0.04880096,105820.0,105810.0,0.34146465]
[1748569345509,0.04880096,105820.0,105810.0,0.33201438]
[1748569345510,0.21890211,105820.0,105810.0,0.33201438]
[1748569345723,0.03935193,105820.0,105810.0,0.74146474]
[1748569346366,0.22835211,105820.0,105810.0,0.73201438]
[1748569346797,0.22835211,105820.0,105810.0,0.74146492]
[1748569347006,0.02990139,105820.0,105810.0,1.09091519]
[1748569347220,0.03935122,105820.0,105810.0,1.09091519]
[1748569347431,0.03935122,105820.0,105810.0,1.10036555]
[1748569349047,0.04880122,105820.0,105810.0,1.09091528]
[1748569349264,0.01100236,105820.0,105810.0,3.85817155]
[1748569349480,0.02045156,105820.0,105810.0,3.73075255]
[1748569349688,0.02045156,105820.0,105810.0,3.41519655]
[1748569349902,0.02045156,105820.0,105810.0,3.16882755]
[1748569350119,0.02045156,105820.0,105810.0,2.93666355]
[1748569350346,0.02990085,105820.0,105810.0,2.93666355]
[1748569351209,0.02045156,105820.0,105810.0,2.93666355]
[1748569351877,0.02990103,105820.0,105810.0,2.24652255]
[1748569352105,0.02990094,105820.0,105810.0,2.24652255]
[1748569355177,0.21890211,105820.0,105810.0,1.4894588]
[1748569355399,0.23400211,105820.0,105810.0,1.6808782]
[1748569355615,0.23400211,105820.0,105810.0,1.68087856]
[1748569355840,0.21890211,105820.0,105810.0,1.71487991]
[1748569356314,0.21890211,105820.0,105810.0,1.69977991]
[1748569356559,0.21890211,105820.0,105810.0,1.69032928]
[1748569356811,0.21890211,105820.0,105810.0,1.69977991]
[1748569357659,0.21890211,105820.0,105810.0,1.70923045]
[1748569358138,0.02990193,105820.0,105810.0,1.70922991]
[1748569358883,0.02990193,105820.0,105810.0,1.72452991]
[1748569359110,0.03935122,105820.0,105810.0,1.74022937]
[1748569359333,0.04880114,105820.0,105810.0,1.72452937]
[1748569359559,0.04880114,105820.0,105810.0,1.7150791]
[1748569359789,0.03935122,105820.0,105810.0,1.7150791]
[1748569360020,0.02990139,105820.0,105810.0,1.72452937]
[1748569360268,0.03935122,105820.0,105810.0,1.7150791]
[1748569360515,0.05825114,105820.0,105810.0,1.7150791]
[1748569361806,0.04880114,105820.0,105810.0,1.7150791]
[1748569362017,0.03935122,105820.0,105810.0,1.7150791]
[1748569362233,0.03935122,105820.0,105810.0,1.72452937]
[1748569362856,0.02045174,105820.0,105810.0,1.72452937]
[1748569363106,0.02045174,105820.0,105810.0,1.74419097]
[1748569363107,0.01100236,105820.0,105810.0,1.74419097]
[1748569363521,0.01100236,105820.0,105810.0,1.72779097]
[1748569363755,0.01100236,105820.0,105810.0,1.74419097]
[1748569363976,0.02045156,105820.0,105810.0,1.74419097]
[1748569364434,0.02990094,105820.0,105810.0,1.74419097]
[1748569364853,0.01100236,105820.0,105810.0,6.16882697]
[1748569365061,0.01100236,105820.0,105810.0,6.17322754]
[1748569365271,0.01100236,105820.0,105810.0,3.33093554]
[1748569365272,0.02045156,105820.0,105810.0,3.33093554]
[1748569365480,0.01100236,105820.0,105810.0,3.33093554]
[1748569365874,0.01100236,105820.0,105810.0,4.04214754]
[1748569366121,0.01100236,105820.0,105810.0,4.008488]
[1748569367026,0.01100236,105820.0,105810.0,4.253362]
[1748569367253,0.02045156,105820.0,105810.0,4.174753]
[1748569367485,0.02045156,105820.0,105810.0,3.859268]
[1748569367719,0.02045156,105820.0,105810.0,3.834679]
[1748569367966,0.01100236,105820.0,105810.0,4.022016]
[1748569368226,0.02045156,105820.0,105810.0,3.859773]
[1748569368466,0.01100236,105820.0,105810.0,3.859773]
[1748569368930,0.02045165,105820.0,105810.0,3.859773]
[1748569369159,0.01100236,105820.0,105810.0,3.933832]
[1748569369628,0.01100236,105820.0,105810.0,3.903408]
[1748569370075,0.02045165,105820.0,105810.0,3.933782]
[1748569370316,0.23780078,105820.0,105810.0,2.5429474]
[1748569370554,0.25150211,105820.0,105810.0,1.73402119]
[1748569370792,0.25150211,105820.0,105810.0,1.07665395]
[1748569371046,0.25150211,105820.0,105810.0,1.4311948]
[1748569371284,0.24205246,105820.0,105810.0,1.0311948]
[1748569371521,0.24205246,105820.0,105810.0,1.04052312]
[1748569372017,0.24205246,105820.0,105810.0,0.002]
[1748569375984,0.25089084,105820.0,105810.0,0.002]
[1748569376196,0.25089114,105820.0,105810.0,0.002]
[1748569376409,0.54549246,105820.0,105810.0,0.002]
[1748569376844,0.24205246,105820.0,105810.0,0.002]
[1748569377104,0.54549246,105820.0,105810.0,0.002]
[1748569377328,0.24205246,105820.0,105810.0,0.002]
[1748569378863,0.22555246,105820.0,105810.0,0.09305395]
[1748569379333,0.24195246,105820.0,105810.0,0.09305395]
[1748569380040,0.24195246,105820.0,105810.0,0.10233196]
[1748569380755,0.24195246,105820.0,105810.0,0.50233196]
[1748569382392,0.22555246,105820.0,105810.0,0.50233196]
[1748569383098,0.20945246,105820.0,105810.0,0.50233196]
[1748569383754,0.2283514,105820.0,105810.0,0.72555136]
[1748569383760,0.2283514,105820.0,105810.0,0.32555136]
[1748569383992,0.02045174,105820.0,105810.0,0.36464248]
[1748569384219,0.02990139,105820.0,105810.0,0.76464248]
[1748569384469,0.02990139,105820.0,105810.0,0.76464257]
[1748569384696,0.0299013,105820.0,105810.0,0.77409284]
[1748569384917,0.03935095,105820.0,105810.0,0.77409284]
[1748569385131,0.05825069,105820.0,105810.0,0.73500199]
[1748569385349,0.05825052,105820.0,105810.0,0.75390262]
[1748569385556,0.04880069,105820.0,105810.0,0.75390262]
[1748569385778,0.05825052,105820.0,105810.0,0.75390262]
[1748569385991,0.04880069,105820.0,105810.0,0.75390262]
[1748569386212,0.02990121,105820.0,105810.0,1.12474347]
[1748569386637,0.02045165,105820.0,105810.0,1.12474347]
[1748569386846,0.02990103,105820.0,105810.0,1.12474347]
[1748569388817,0.03935059,105820.0,105810.0,1.12474347]
[1748569389495,0.55280193,105820.0,105810.0,0.002]
[1748569390416,0.20793886,105800.0,105790.0,0.01915323]
[1748569390947,0.00945188,105790.0,105780.0,2.12089898]
[1748569391161,0.21739056,105800.0,105790.0,0.35890527]
[1748569391401,0.21739056,105800.0,105790.0,0.44995922]
[1748569391640,0.19848761,105800.0,105790.0,0.43905395]
[1748569391871,0.19848761,105800.0,105790.0,0.43505395]
[1748569392106,0.19848761,105800.0,105790.0,0.44450663]
[1748569392819,0.19848761,105800.0,105790.0,0.44995922]
[1748569393057,0.19848761,105800.0,105790.0,0.639013]
[1748569393292,0.19848761,105800.0,105790.0,0.44250663]
[1748569394041,0.19848761,105800.0,105790.0,0.46351911]
[1748569394266,0.19848761,105800.0,105790.0,0.6620254]
[1748569394495,0.19848761,105800.0,105790.0,0.67147782]
[1748569395184,0.19848761,105800.0,105790.0,0.66202531]
[1748569395414,0.19848761,105800.0,105790.0,1.06202531]
[1748569395674,0.19848761,105800.0,105790.0,1.07147764]
[1748569395903,0.01890242,105800.0,105790.0,1.08092917]
[1748569396138,0.02835153,105810.0,105800.0,0.38458842]
[1748569396388,0.04725243,105810.0,105800.0,0.49074245]
[1748569396604,0.04725324,105810.0,105800.0,0.49074281]
[1748569396829,0.22682093,105810.0,105800.0,0.45468647]
[1748569397047,0.21737048,105810.0,105800.0,0.28954147]
[1748569397497,0.21737048,105810.0,105800.0,0.30099299]
[1748569398339,0.20791976,105810.0,105800.0,0.29154165]
[1748569398766,0.20791976,105810.0,105800.0,0.31044496]
[1748569399030,0.19846895,105810.0,105800.0,0.09305395]
[1748569399251,0.19846895,105810.0,105800.0,0.402]
[1748569401110,0.21446895,105810.0,105800.0,0.402]
[1748569402319,0.19846895,105810.0,105800.0,0.002]
[1748569404265,0.19846895,105810.0,105800.0,0.19103591]
[1748569404501,0.0189009,105810.0,105800.0,0.29154147]
[1748569404718,0.21736976,105810.0,105800.0,0.30704147]
[1748569405634,0.22682066,105810.0,105800.0,0.67179299]
[1748569405859,0.22682066,105810.0,105800.0,0.68124442]
[1748569406301,0.22682066,105810.0,105800.0,1.09069576]
[1748569407182,0.03780261,105810.0,105800.0,1.09069576]
[1748569407402,0.02835171,105810.0,105800.0,1.10014701]
[1748569407828,0.02835171,105810.0,105800.0,1.50173701]
[1748569408069,0.02835171,105810.0,105800.0,1.38753501]
[1748569408911,0.02835171,105810.0,105800.0,1.38753457]
[1748569409607,0.02835162,105810.0,105800.0,1.04753457]
[1748569410485,0.0189009,105810.0,105800.0,1.04753457]
[1748569410718,0.02990139,105820.0,105810.0,0.23326967]
[1748569410935,0.01545156,105820.0,105810.0,1.13424662]
[1748569411361,0.02490094,105820.0,105810.0,1.53424662]
[1748569411582,0.01545156,105820.0,105810.0,1.53424662]
[1748569412458,0.01645156,105820.0,105810.0,1.53424662]
[1748569412681,0.00700236,105820.0,105810.0,1.54878747]
[1748569412903,0.03463804,105830.0,105820.0,0.51397213]
[1748569413132,0.05362845,105830.0,105820.0,0.60502626]
[1748569413373,0.05362845,105830.0,105820.0,0.61447573]
[1748569413604,0.05362836,105830.0,105820.0,1.01447573]
[1748569413826,0.05362836,105830.0,105820.0,1.00502626]
[1748569414068,0.05362836,105830.0,105820.0,1.00572122]
[1748569414506,0.2331622,105830.0,105820.0,1.00672131]
[1748569414792,0.25561345,105830.0,105820.0,0.002]
[1748569415016,0.9894274,105830.0,105820.0,0.002]
[1748569415675,0.99885302,105830.0,105820.0,0.002]
[1748569415892,0.20793886,105800.0,105790.0,0.01901248]
[1748569416129,0.20793886,105800.0,105790.0,0.49105395]
[1748569416779,0.20793886,105800.0,105790.0,0.4]
[1748569416780,0.22323886,105800.0,105790.0,0.4]
[1748569416984,0.22323886,105800.0,105790.0,0.42105886]
[1748569417203,0.23873886,105800.0,105790.0,0.42305886]
[1748569417626,0.22323886,105800.0,105790.0,0.42305886]
[1748569418960,0.22323886,105800.0,105790.0,0.02305886]
[1748569419527,0.22323886,105800.0,105790.0,0.42305886]
[1748569422551,0.20793886,105800.0,105790.0,0.02305886]
[1748569423118,0.20793886,105800.0,105790.0,0.42305886]
[1748569425825,0.22293886,105800.0,105790.0,0.02305886]
[1748569426037,0.23893886,105800.0,105790.0,0.02305886]
[1748569431151,0.52541886,105800.0,105790.0,0.02305886]
[1748569431379,0.20793886,105800.0,105790.0,0.02305886]
[1748569431824,0.22313886,105800.0,105790.0,0.02305886]
[1748569433854,0.20793886,105800.0,105790.0,0.02305886]
[1748569434953,0.20793886,105800.0,105790.0,0.03925886]
[1748569435893,0.19848752,105800.0,105790.0,0.03925886]
[1748569436582,0.19848752,105800.0,105790.0,0.24431264]
[1748569436810,0.21739065,105800.0,105790.0,0.26321757]
[1748569437054,0.20793931,105800.0,105790.0,0.25376532]
[1748569437277,0.20793931,105800.0,105790.0,0.26321774]
[1748569437714,0.20793931,105800.0,105790.0,0.25376532]